[Event "*** Titled Tuesday Blitz"]
[Site "Chess.com"]
[Date "2020.04.14"]
[Round "4"]
[White "czasnaszachy"]
[Black "AnkitGajwa"]
[Result "1/2-1/2"]
[WhiteElo "2344"]
[BlackElo "2545"]
[TimeControl "180+1"]
[EndTime "10:41:37 PDT"]
[Termination "Game drawn by agreement"]

1. d4 {[%clk 0:03:00.9]} 1... Nf6 {[%clk 0:02:59.1]} 2. c4 {[%clk 0:03:01]} 2...
e6 {[%clk 0:02:59.3]} 3. Nc3 {[%clk 0:03:00.8]} 3... d5 {[%clk 0:02:59.6]} 4.
Bf4 {[%clk 0:02:58.3]} 4... Be7 {[%clk 0:02:59.4]} 5. Nf3 {[%clk 0:02:57.3]}
5... O-O {[%clk 0:02:58.4]} 6. e3 {[%clk 0:02:57.5]} 6... Nbd7 {[%clk
0:02:57.7]} 7. Rc1 {[%clk 0:02:57.1]} 7... c5 {[%clk 0:02:57.5]} 8. dxc5 {[%clk
0:02:49.9]} 8... Nxc5 {[%clk 0:02:54]} 9. Be2 {[%clk 0:02:49.1]} 9... dxc4
{[%clk 0:02:51]} 10. Bxc4 {[%clk 0:02:45.6]} 10... a6 {[%clk 0:02:49]} 11. O-O
{[%clk 0:02:44.7]} 11... b5 {[%clk 0:02:48.7]} 12. Be2 {[%clk 0:02:44.2]} 12...
Bb7 {[%clk 0:02:47.9]} 13. Ne5 {[%clk 0:02:41]} 13... b4 {[%clk 0:02:20.6]} 14.
Nb1 {[%clk 0:02:28.6]} 14... Nd5 {[%clk 0:02:18.2]} 15. Bg3 {[%clk 0:02:23.5]}
15... f6 {[%clk 0:02:16.1]} 16. Nc4 {[%clk 0:02:19]} 16... Qe8 {[%clk
0:02:15.6]} 17. Bf3 {[%clk 0:02:15.4]} 17... Rd8 {[%clk 0:02:14.9]} 18. Qe2
{[%clk 0:02:11.5]} 18... Qa4 {[%clk 0:02:09.4]} 19. Nbd2 {[%clk 0:01:55]} 19...
Qb5 {[%clk 0:01:24.9]} 20. Rfd1 {[%clk 0:01:38.5]} 20... e5 {[%clk 0:01:10.6]}
21. Kf1 {[%clk 0:01:13.3]} 21... Nc7 {[%clk 0:01:01.4]} 22. Bxb7 {[%clk
0:01:04]} 22... Qxb7 {[%clk 0:00:58.7]} 23. Na5 {[%clk 0:00:58.3]} 23... Qb5
{[%clk 0:00:56.3]} 24. Qxb5 {[%clk 0:00:52.9]} 24... Nxb5 {[%clk 0:00:55.5]} 25.
Nc6 {[%clk 0:00:53]} 25... Nd3 {[%clk 0:00:38.5]} 26. Nxe7+ {[%clk 0:00:51.7]}
26... Kf7 {[%clk 0:00:38.6]} 27. Nc6 {[%clk 0:00:46.8]} 27... Nxc1 {[%clk
0:00:38.4]} 28. Nxd8+ {[%clk 0:00:44.6]} 28... Rxd8 {[%clk 0:00:38.4]} 29. Rxc1
{[%clk 0:00:33.5]} 29... Rxd2 {[%clk 0:00:38.1]} 30. Rc6 {[%clk 0:00:33.8]}
30... Rxb2 {[%clk 0:00:37.9]} 31. Rxa6 {[%clk 0:00:34]} 31... Nc3 {[%clk
0:00:38.4]} 32. Ra7+ {[%clk 0:00:33]} 32... Kg6 {[%clk 0:00:38.1]} 33. f3 {[%clk
0:00:30.8]} 33... Rxa2 {[%clk 0:00:37.6]} 34. Rb7 {[%clk 0:00:29.1]} 34... Rb2
{[%clk 0:00:35.6]} 35. Be1 {[%clk 0:00:28.1]} 35... Rb1 {[%clk 0:00:33.6]} 36.
Kf2 {[%clk 0:00:25.8]} 36... Nd1+ {[%clk 0:00:33.5]} 37. Ke2 {[%clk 0:00:25.8]}
37... Nxe3 {[%clk 0:00:33.8]} 38. Kxe3 {[%clk 0:00:17.8]} 38... Rxe1+ {[%clk
0:00:33.5]} 39. Kf2 {[%clk 0:00:18.2]} 39... Rb1 {[%clk 0:00:33.6]} 40. Rb8
{[%clk 0:00:18.7]} 40... Rb2+ {[%clk 0:00:33.5]} 41. Kg3 {[%clk 0:00:18.1]}
41... h5 {[%clk 0:00:33.4]} 42. h4 {[%clk 0:00:18.4]} 42... b3 {[%clk
0:00:32.4]} 43. Rb7 {[%clk 0:00:18.9]} 43... Kh6 {[%clk 0:00:31.4]} 44. Rb4
{[%clk 0:00:19.5]} 44... Kh7 {[%clk 0:00:31.1]} 45. Rb6 {[%clk 0:00:19.4]} 45...
Kg8 {[%clk 0:00:30.9]} 46. Rb7 {[%clk 0:00:19.5]} 46... Kh7 {[%clk 0:00:31.1]}
47. f4 {[%clk 0:00:19.8]} 47... e4 {[%clk 0:00:30.7]} 48. Re7 {[%clk 0:00:18.7]}
48... f5 {[%clk 0:00:30.5]} 49. Rb7 {[%clk 0:00:18.7]} 49... e3 {[%clk
0:00:29.8]} 50. Kf3 {[%clk 0:00:18.8]} 50... Rf2+ {[%clk 0:00:29.2]} 51. Kxe3
{[%clk 0:00:18.6]} 51... Rxg2 {[%clk 0:00:29.6]} 52. Kd4 {[%clk 0:00:19]} 52...
Rg4 {[%clk 0:00:28.7]} 53. Ke5 {[%clk 0:00:19.3]} 53... Rxh4 {[%clk 0:00:21.7]}
54. Rxb3 {[%clk 0:00:19.8]} 54... g6 {[%clk 0:00:19.7]} 55. Rb7+ {[%clk
0:00:19.5]} 55... Kh6 {[%clk 0:00:19]} 56. Rb8 {[%clk 0:00:17.3]} 56... Kg7
{[%clk 0:00:13.7]} 57. Rb7+ {[%clk 0:00:17.1]} 57... Kf8 {[%clk 0:00:13.9]} 58.
Kf6 {[%clk 0:00:16.6]} 58... Ke8 {[%clk 0:00:13.3]} 59. Kxg6 {[%clk 0:00:16.5]}
59... Rxf4 {[%clk 0:00:13.7]} 60. Kxh5 {[%clk 0:00:16.8]} 60... Rf1 {[%clk
0:00:14.1]} 61. Kg5 {[%clk 0:00:17.2]} 61... f4 {[%clk 0:00:14.5]} 62. Rb3
{[%clk 0:00:14.5]} 62... f3 {[%clk 0:00:14.3]} 63. Kf4 {[%clk 0:00:14.6]} 63...
f2 {[%clk 0:00:14.6]} 64. Rf3 {[%clk 0:00:13.9]} 64... Ke7 {[%clk 0:00:12.6]}
65. Kg3 {[%clk 0:00:14.2]} 65... Ke6 {[%clk 0:00:11.2]} 66. Kg2 {[%clk
0:00:13.8]} 66... Re1 {[%clk 0:00:10.4]} 67. Kxf2 {[%clk 0:00:14.1]} 67... Re5
{[%clk 0:00:10.7]} 68. Rg3 {[%clk 0:00:14.3]} 68... Rf5+ {[%clk 0:00:10.9]} 69.
Kg2 {[%clk 0:00:14.9]} 69... Kf6 {[%clk 0:00:11.5]} 70. Ra3 {[%clk 0:00:15.1]}
70... Kg5 {[%clk 0:00:11.6]} 71. Ra8 {[%clk 0:00:15]} 71... Kg4 {[%clk
0:00:11.8]} 72. Rg8+ {[%clk 0:00:15.2]} 72... Rg5 {[%clk 0:00:12.3]} 73. Ra8
{[%clk 0:00:15.7]} 73... Rf5 {[%clk 0:00:12.5]} 74. Ra4+ {[%clk 0:00:15.2]}
74... Rf4 {[%clk 0:00:13]} 75. Ra3 {[%clk 0:00:15.4]} 75... Rb4 {[%clk
0:00:13.1]} 76. Rg3+ {[%clk 0:00:15.5]} 76... Kf4 {[%clk 0:00:13.7]} 77. Rf3+
{[%clk 0:00:14.4]} 77... Ke4 {[%clk 0:00:13.9]} 78. Rg3 {[%clk 0:00:14.3]}
1/2-1/2

[Event "*** Titled Tuesday Blitz"]
[Site "Chess.com"]
[Date "2020.04.14"]
[Round "4"]
[White "GianmarcoVaR"]
[Black "Kumi29"]
[Result "1-0"]
[WhiteElo "2632"]
[BlackElo "2415"]
[TimeControl "180+1"]
[EndTime "10:41:46 PDT"]
[Termination "GianmarcoVaR won by checkmate"]

1. d4 {[%clk 0:03:00.9]} 1... e6 {[%clk 0:02:59.8]} 2. c4 {[%clk 0:02:59.9]}
2... b6 {[%clk 0:03:00]} 3. a3 {[%clk 0:02:58]} 3... Bb7 {[%clk 0:02:59.1]} 4.
Nc3 {[%clk 0:02:58.4]} 4... f5 {[%clk 0:02:59.6]} 5. Nh3 {[%clk 0:02:56.2]} 5...
Nf6 {[%clk 0:02:59.5]} 6. f3 {[%clk 0:02:54.5]} 6... Be7 {[%clk 0:02:56.5]} 7.
e3 {[%clk 0:02:50.5]} 7... O-O {[%clk 0:02:53.6]} 8. Bd3 {[%clk 0:02:48.2]} 8...
Qe8 {[%clk 0:02:47.4]} 9. O-O {[%clk 0:02:47.8]} 9... Qh5 {[%clk 0:02:37.1]} 10.
Qe1 {[%clk 0:02:42]} 10... d6 {[%clk 0:02:29.6]} 11. Nf4 {[%clk 0:02:27.7]}
11... Qf7 {[%clk 0:02:28.9]} 12. d5 {[%clk 0:02:27.2]} 12... exd5 {[%clk
0:02:19.8]} 13. Bxf5 {[%clk 0:02:27.6]} 13... Kh8 {[%clk 0:02:05.9]} 14. Be6
{[%clk 0:02:26.4]} 14... Qe8 {[%clk 0:02:04.9]} 15. cxd5 {[%clk 0:02:26.2]}
15... Nbd7 {[%clk 0:02:00.1]} 16. Nb5 {[%clk 0:02:21.2]} 16... Qd8 {[%clk
0:01:50.9]} 17. Qh4 {[%clk 0:02:11.4]} 17... Ne5 {[%clk 0:01:34.7]} 18. Qh3
{[%clk 0:02:03.8]} 18... a6 {[%clk 0:01:26.1]} 19. Nd4 {[%clk 0:02:02.5]} 19...
g5 {[%clk 0:01:08.9]} 20. Nh5 {[%clk 0:01:51.4]} 20... Nxd5 {[%clk 0:01:02.2]}
21. e4 {[%clk 0:01:30.8]} 21... Nf4 {[%clk 0:00:55.4]} 22. Nxf4 {[%clk
0:01:19.6]} 22... gxf4 {[%clk 0:00:56.3]} 23. Bf5 {[%clk 0:01:19.7]} 23... Rf7
{[%clk 0:00:52.5]} 24. Bxf4 {[%clk 0:01:16.7]} 24... Bc8 {[%clk 0:00:46.6]} 25.
Bxc8 {[%clk 0:00:44.9]} 25... Qxc8 {[%clk 0:00:41.4]} 26. Qxc8+ {[%clk
0:00:43.4]} 26... Rxc8 {[%clk 0:00:41]} 27. Bxe5+ {[%clk 0:00:41.6]} 27... dxe5
{[%clk 0:00:41.1]} 28. Nc6 {[%clk 0:00:40.3]} 28... Bd6 {[%clk 0:00:34.9]} 29.
b4 {[%clk 0:00:38.4]} 29... Rg8 {[%clk 0:00:33]} 30. Ra2 {[%clk 0:00:37.2]}
30... h5 {[%clk 0:00:33.2]} 31. Rd2 {[%clk 0:00:34.3]} 31... h4 {[%clk
0:00:32.6]} 32. Rd5 {[%clk 0:00:33.7]} 32... Rg5 {[%clk 0:00:32.8]} 33. f4
{[%clk 0:00:32.3]} 33... Rg4 {[%clk 0:00:20.5]} 34. fxe5 {[%clk 0:00:31]} 34...
Rxf1+ {[%clk 0:00:10.2]} 35. Kxf1 {[%clk 0:00:31.2]} 35... Bf8 {[%clk
0:00:10.4]} 36. Rd4 {[%clk 0:00:13]} 36... Rg6 {[%clk 0:00:07.3]} 37. Rc4 {[%clk
0:00:11.4]} 37... b5 {[%clk 0:00:06.3]} 38. Rc3 {[%clk 0:00:10.9]} 38... Rg4
{[%clk 0:00:06.6]} 39. Re3 {[%clk 0:00:09.2]} 39... Bh6 {[%clk 0:00:06.8]} 40.
Re2 {[%clk 0:00:08]} 40... Kg7 {[%clk 0:00:07]} 41. Nd4 {[%clk 0:00:07.4]} 41...
Kf7 {[%clk 0:00:03.6]} 42. Nf3 {[%clk 0:00:06.1]} 42... Ke6 {[%clk 0:00:02.5]}
43. h3 {[%clk 0:00:06]} 43... Rf4 {[%clk 0:00:02.5]} 44. Ke1 {[%clk 0:00:05]}
44... Rf7 {[%clk 0:00:02.7]} 45. Kd1 {[%clk 0:00:04.6]} 45... Bf4 {[%clk
0:00:03.1]} 46. Kc2 {[%clk 0:00:04.2]} 46... Bxe5 {[%clk 0:00:03.5]} 47. Nxh4
{[%clk 0:00:03.7]} 47... Rg7 {[%clk 0:00:02.2]} 48. Nf3 {[%clk 0:00:03.7]} 48...
Rg3 {[%clk 0:00:02.2]} 49. Rd2 {[%clk 0:00:02.5]} 49... Bf4 {[%clk 0:00:02]} 50.
Re2 {[%clk 0:00:02.9]} 50... c6 {[%clk 0:00:02.4]} 51. Nd4+ {[%clk 0:00:03]}
51... Ke5 {[%clk 0:00:02.5]} 52. Nxc6+ {[%clk 0:00:02.9]} 52... Ke6 {[%clk
0:00:03.4]} 53. Nd4+ {[%clk 0:00:03.4]} 53... Ke5 {[%clk 0:00:04.1]} 54. Nf3+
{[%clk 0:00:03.4]} 54... Ke6 {[%clk 0:00:04.6]} 55. h4 {[%clk 0:00:04.1]} 55...
Bh6 {[%clk 0:00:04.7]} 56. h5 {[%clk 0:00:04.4]} 56... Bg7 {[%clk 0:00:05.1]}
57. Kd3 {[%clk 0:00:03.8]} 57... Rg4 {[%clk 0:00:05.5]} 58. Ke3 {[%clk
0:00:03.9]} 58... Bh6+ {[%clk 0:00:05.5]} 59. Kf2 {[%clk 0:00:04.3]} 59... Rg8
{[%clk 0:00:06.4]} 60. Rc2 {[%clk 0:00:04.6]} 60... Bf4 {[%clk 0:00:06.7]} 61.
Rc6+ {[%clk 0:00:04.7]} 61... Kd7 {[%clk 0:00:07.2]} 62. Rg6 {[%clk 0:00:04.7]}
62... Rf8 {[%clk 0:00:07]} 63. h6 {[%clk 0:00:04.1]} 63... Be5 {[%clk
0:00:06.9]} 64. h7 {[%clk 0:00:03.9]} 64... Bd4+ {[%clk 0:00:07.3]} 65. Ke2
{[%clk 0:00:03.7]} 65... Bb2 {[%clk 0:00:08.2]} 66. Rxa6 {[%clk 0:00:03.8]}
66... Rh8 {[%clk 0:00:07.8]} 67. Ra7+ {[%clk 0:00:04.1]} 67... Kd6 {[%clk
0:00:07.8]} 68. g4 {[%clk 0:00:04.5]} 68... Bc3 {[%clk 0:00:07.4]} 69. g5 {[%clk
0:00:04.7]} 69... Be5 {[%clk 0:00:07.1]} 70. g6 {[%clk 0:00:04.8]} 70... Bf6
{[%clk 0:00:06.9]} 71. Ke3 {[%clk 0:00:04.5]} 71... Bb2 {[%clk 0:00:05.5]} 72.
Ra6+ {[%clk 0:00:04.7]} 72... Ke7 {[%clk 0:00:04.8]} 73. e5 {[%clk 0:00:04.7]}
73... Bc1+ {[%clk 0:00:05]} 74. Ke4 {[%clk 0:00:04.7]} 74... Bh6 {[%clk
0:00:05.9]} 75. Ra7+ {[%clk 0:00:04.9]} 75... Ke6 {[%clk 0:00:06.4]} 76. Ra6+
{[%clk 0:00:05.3]} 76... Ke7 {[%clk 0:00:06.7]} 77. Nh4 {[%clk 0:00:05.8]} 77...
Rc8 {[%clk 0:00:06]} 78. Nf5+ {[%clk 0:00:06.7]} 78... Kf8 {[%clk 0:00:05.5]}
79. h8=Q# {[%clk 0:00:06.2]} 1-0

[Event "*** Titled Tuesday Blitz"]
[Site "Chess.com"]
[Date "2020.04.14"]
[Round "4"]
[White "PchelkinVK"]
[Black "keepitcool9499"]
[Result "1-0"]
[WhiteElo "2464"]
[BlackElo "2276"]
[TimeControl "180+1"]
[EndTime "10:41:47 PDT"]
[Termination "PchelkinVK won by checkmate"]

1. d4 {[%clk 0:03:00.9]} 1... Nf6 {[%clk 0:02:59.3]} 2. Nc3 {[%clk 0:03:00.9]}
2... e6 {[%clk 0:02:59.5]} 3. e4 {[%clk 0:03:00.3]} 3... d5 {[%clk 0:03:00]} 4.
e5 {[%clk 0:03:00.5]} 4... Nfd7 {[%clk 0:03:00.3]} 5. Nf3 {[%clk 0:03:00.8]}
5... c5 {[%clk 0:03:00.8]} 6. dxc5 {[%clk 0:03:01.7]} 6... Nc6 {[%clk
0:02:59.7]} 7. Bf4 {[%clk 0:03:01.9]} 7... Bxc5 {[%clk 0:02:59.7]} 8. Bd3 {[%clk
0:03:02.3]} 8... f5 {[%clk 0:02:57.9]} 9. exf6 {[%clk 0:02:42.6]} 9... Nxf6
{[%clk 0:02:56.4]} 10. Qd2 {[%clk 0:02:39.5]} 10... Bd7 {[%clk 0:02:53.8]} 11.
O-O-O {[%clk 0:02:39.2]} 11... Qa5 {[%clk 0:02:53.5]} 12. Rhe1 {[%clk
0:02:37.2]} 12... O-O-O {[%clk 0:02:52.1]} 13. Ne5 {[%clk 0:02:30.8]} 13... Nxe5
{[%clk 0:02:50.6]} 14. Bxe5 {[%clk 0:02:31.7]} 14... Rhf8 {[%clk 0:02:45.9]} 15.
Kb1 {[%clk 0:02:24.7]} 15... Qb6 {[%clk 0:02:27.9]} 16. Bg3 {[%clk 0:02:17]}
16... h6 {[%clk 0:02:15.4]} 17. Qf4 {[%clk 0:02:12.2]} 17... Bc6 {[%clk
0:01:46.9]} 18. Rxe6 {[%clk 0:01:23.2]} 18... Ne4 {[%clk 0:01:33.8]} 19. Qe5
{[%clk 0:01:09.9]} 19... Bd4 {[%clk 0:01:13.7]} 20. Rxc6+ {[%clk 0:00:23.4]}
20... bxc6 {[%clk 0:00:53.5]} 21. Qe6+ {[%clk 0:00:23]} 21... Kb7 {[%clk
0:00:42.4]} 22. Na4 {[%clk 0:00:13.7]} 22... Nc3+ {[%clk 0:00:34.8]} 23. Nxc3
{[%clk 0:00:12.5]} 23... Bxc3 {[%clk 0:00:34.3]} 24. Qe7+ {[%clk 0:00:11.8]}
24... Ka8 {[%clk 0:00:30.8]} 25. b3 {[%clk 0:00:11.7]} 25... Rfe8 {[%clk
0:00:21.3]} 26. Qf7 {[%clk 0:00:09.2]} 26... Re1 {[%clk 0:00:19.1]} 27. Rxe1
{[%clk 0:00:08.1]} 27... Bxe1 {[%clk 0:00:20]} 28. Qxg7 {[%clk 0:00:07.9]} 28...
Bxf2 {[%clk 0:00:19.8]} 29. Qf6 {[%clk 0:00:05.7]} 29... Bxg3 {[%clk 0:00:18.8]}
30. hxg3 {[%clk 0:00:06.6]} 30... Qc7 {[%clk 0:00:16.6]} 31. Qxh6 {[%clk
0:00:05.9]} 31... Kb7 {[%clk 0:00:15.9]} 32. Qe3 {[%clk 0:00:04.7]} 32... Rg8
{[%clk 0:00:13.8]} 33. g4 {[%clk 0:00:04.4]} 33... Qg7 {[%clk 0:00:12.1]} 34.
Bf5 {[%clk 0:00:03.4]} 34... Qc7 {[%clk 0:00:10.8]} 35. Qe6 {[%clk 0:00:02.5]}
35... Rg7 {[%clk 0:00:08.3]} 36. a4 {[%clk 0:00:03.4]} 36... Re7 {[%clk
0:00:08.2]} 37. Qf6 {[%clk 0:00:03.3]} 37... Re1+ {[%clk 0:00:07.8]} 38. Kb2
{[%clk 0:00:03.4]} 38... Qe5+ {[%clk 0:00:07.9]} 39. Qxe5 {[%clk 0:00:03.4]}
39... Rxe5 {[%clk 0:00:08.8]} 40. Kc3 {[%clk 0:00:04.3]} 40... Kc7 {[%clk
0:00:08.7]} 41. Kd4 {[%clk 0:00:04.3]} 41... Kd6 {[%clk 0:00:09.1]} 42. a5
{[%clk 0:00:05.2]} 42... c5+ {[%clk 0:00:08.9]} 43. Kd3 {[%clk 0:00:06.1]} 43...
Re7 {[%clk 0:00:08.3]} 44. c3 {[%clk 0:00:05.5]} 44... Ke5 {[%clk 0:00:08.3]}
45. b4 {[%clk 0:00:05.2]} 45... cxb4 {[%clk 0:00:07.6]} 46. cxb4 {[%clk
0:00:06.1]} 46... Kf4 {[%clk 0:00:06.9]} 47. b5 {[%clk 0:00:05.6]} 47... Ke5
{[%clk 0:00:06.4]} 48. Kc3 {[%clk 0:00:04.8]} 48... d4+ {[%clk 0:00:05.1]} 49.
Kb4 {[%clk 0:00:04.6]} 49... Rc7 {[%clk 0:00:05.4]} 50. b6 {[%clk 0:00:03.9]}
50... axb6 {[%clk 0:00:06.3]} 51. axb6 {[%clk 0:00:04.8]} 51... Rf7 {[%clk
0:00:05.9]} 52. Kb5 {[%clk 0:00:04.5]} 52... Kd6 {[%clk 0:00:05.5]} 53. Ka6
{[%clk 0:00:04.2]} 53... Kc5 {[%clk 0:00:05.5]} 54. b7 {[%clk 0:00:03.2]} 54...
Rf8 {[%clk 0:00:05.5]} 55. Ka7 {[%clk 0:00:02.7]} 55... d3 {[%clk 0:00:05.6]}
56. b8=Q {[%clk 0:00:02.2]} 56... Rxb8 {[%clk 0:00:05.4]} 57. Kxb8 {[%clk
0:00:03.1]} 57... d2 {[%clk 0:00:05.8]} 58. Bc2 {[%clk 0:00:03.3]} 58... d1=Q
{[%clk 0:00:06.7]} 59. Bxd1 {[%clk 0:00:03.7]} 59... Kd4 {[%clk 0:00:07.6]} 60.
g5 {[%clk 0:00:04.3]} 60... Ke5 {[%clk 0:00:08.5]} 61. Bf3 {[%clk 0:00:05]}
61... Kf4 {[%clk 0:00:09.4]} 62. Kc7 {[%clk 0:00:05.6]} 62... Kxg5 {[%clk
0:00:10.3]} 63. Kd6 {[%clk 0:00:06.5]} 63... Kf4 {[%clk 0:00:11.2]} 64. Kc5
{[%clk 0:00:06.9]} 64... Kg3 {[%clk 0:00:12.1]} 65. Kd4 {[%clk 0:00:07.2]} 65...
Kf4 {[%clk 0:00:13]} 66. Kd3 {[%clk 0:00:08.1]} 66... Kg3 {[%clk 0:00:13.9]} 67.
Ke2 {[%clk 0:00:08.3]} 67... Kf4 {[%clk 0:00:14.8]} 68. Kf2 {[%clk 0:00:08.9]}
68... Kg5 {[%clk 0:00:09.1]} 69. g3 {[%clk 0:00:09.8]} 69... Kf6 {[%clk
0:00:10]} 70. Ke3 {[%clk 0:00:09.7]} 70... Kg7 {[%clk 0:00:10.9]} 71. g4 {[%clk
0:00:10.2]} 71... Kf6 {[%clk 0:00:11.8]} 72. Kf4 {[%clk 0:00:11]} 72... Kg7
{[%clk 0:00:10]} 73. Be4 {[%clk 0:00:11.9]} 73... Kf7 {[%clk 0:00:10.6]} 74. g5
{[%clk 0:00:12.8]} 74... Kg7 {[%clk 0:00:11.5]} 75. Kf5 {[%clk 0:00:13.7]} 75...
Kf7 {[%clk 0:00:12.4]} 76. Bd5+ {[%clk 0:00:13.8]} 76... Kg7 {[%clk 0:00:13.3]}
77. Bg2 {[%clk 0:00:10.9]} 77... Kf7 {[%clk 0:00:14.2]} 78. g6+ {[%clk
0:00:10.2]} 78... Kg7 {[%clk 0:00:15.1]} 79. Kg5 {[%clk 0:00:10.5]} 79... Kh8
{[%clk 0:00:16]} 80. Kf6 {[%clk 0:00:10.1]} 80... Kg8 {[%clk 0:00:15.7]} 81.
Bd5+ {[%clk 0:00:09.8]} 81... Kh8 {[%clk 0:00:16.6]} 82. g7+ {[%clk 0:00:09.4]}
82... Kh7 {[%clk 0:00:17.5]} 83. g8=Q+ {[%clk 0:00:09]} 83... Kh6 {[%clk
0:00:18.4]} 84. Qh8# {[%clk 0:00:08.5]} 1-0

[Event "*** Titled Tuesday Blitz"]
[Site "Chess.com"]
[Date "2020.04.14"]
[Round "4"]
[White "hongnhung1234"]
[Black "Danfii"]
[Result "0-1"]
[WhiteElo "2132"]
[BlackElo "2324"]
[TimeControl "180+1"]
[EndTime "10:42:12 PDT"]
[Termination "Danfii won by checkmate"]

1. e4 {[%clk 0:03:00.9]} 1... e5 {[%clk 0:03:00]} 2. Nf3 {[%clk 0:03:00.9]} 2...
Nc6 {[%clk 0:03:00.3]} 3. d4 {[%clk 0:03:01.1]} 3... exd4 {[%clk 0:03:00.4]} 4.
Nxd4 {[%clk 0:03:02]} 4... Bc5 {[%clk 0:02:59.2]} 5. Be3 {[%clk 0:03:01.6]} 5...
Qf6 {[%clk 0:02:58.8]} 6. c3 {[%clk 0:03:01.5]} 6... Nge7 {[%clk 0:02:58.9]} 7.
Bc4 {[%clk 0:03:01.5]} 7... b6 {[%clk 0:02:58.3]} 8. O-O {[%clk 0:03:01.5]} 8...
O-O {[%clk 0:02:58.2]} 9. Kh1 {[%clk 0:03:01.2]} 9... Qg6 {[%clk 0:02:50.7]} 10.
Nd2 {[%clk 0:02:59.2]} 10... Ne5 {[%clk 0:02:10]} 11. Be2 {[%clk 0:02:35.3]}
11... d5 {[%clk 0:01:56.6]} 12. f3 {[%clk 0:02:16]} 12... Bb7 {[%clk 0:01:53.5]}
13. Bf4 {[%clk 0:01:59.9]} 13... Bd6 {[%clk 0:01:37.1]} 14. Nb5 {[%clk
0:01:42.4]} 14... dxe4 {[%clk 0:01:10.9]} 15. Nxe4 {[%clk 0:01:30.9]} 15... Bxe4
{[%clk 0:01:10.8]} 16. fxe4 {[%clk 0:01:31.1]} 16... Rad8 {[%clk 0:01:02.1]} 17.
Qb3 {[%clk 0:01:10.4]} 17... Qxe4 {[%clk 0:00:54.2]} 18. Rae1 {[%clk 0:01:08.4]}
18... Qc6 {[%clk 0:00:49.8]} 19. Bxe5 {[%clk 0:00:33.1]} 19... Bxe5 {[%clk
0:00:43.2]} 20. Bc4 {[%clk 0:00:29.6]} 20... Bf6 {[%clk 0:00:35]} 21. Nxa7
{[%clk 0:00:27.1]} 21... Qd7 {[%clk 0:00:27.5]} 22. Nb5 {[%clk 0:00:22.5]} 22...
Ng6 {[%clk 0:00:20.9]} 23. Nd4 {[%clk 0:00:20.3]} 23... c6 {[%clk 0:00:17.2]}
24. Nf5 {[%clk 0:00:18.7]} 24... b5 {[%clk 0:00:16.3]} 25. Be2 {[%clk
0:00:17.3]} 25... Rfe8 {[%clk 0:00:15]} 26. Qc2 {[%clk 0:00:16.5]} 26... Re5
{[%clk 0:00:14]} 27. Bg4 {[%clk 0:00:15.1]} 27... Rxe1 {[%clk 0:00:12.8]} 28.
Rxe1 {[%clk 0:00:13.8]} 28... Qc7 {[%clk 0:00:09.2]} 29. h3 {[%clk 0:00:12.8]}
29... Rf8 {[%clk 0:00:06.7]} 30. Qb3 {[%clk 0:00:12.1]} 30... Ne5 {[%clk
0:00:04.8]} 31. Bh5 {[%clk 0:00:09.4]} 31... g6 {[%clk 0:00:05]} 32. Nh6+ {[%clk
0:00:08.8]} 32... Kg7 {[%clk 0:00:05.6]} 33. Ng4 {[%clk 0:00:03.3]} 33... gxh5
{[%clk 0:00:05.5]} 34. Nxf6 {[%clk 0:00:03.2]} 34... Kxf6 {[%clk 0:00:06.4]} 35.
Rf1+ {[%clk 0:00:03.5]} 35... Kg7 {[%clk 0:00:07]} 36. Qd1 {[%clk 0:00:04]}
36... Ng6 {[%clk 0:00:07.4]} 37. Qxh5 {[%clk 0:00:03.9]} 37... Qe5 {[%clk
0:00:07.9]} 38. Qf3 {[%clk 0:00:03.3]} 38... f6 {[%clk 0:00:07.1]} 39. Qxc6
{[%clk 0:00:03.5]} 39... Re8 {[%clk 0:00:07.9]} 40. Qd7+ {[%clk 0:00:03.2]}
40... Re7 {[%clk 0:00:08.8]} 41. Qd2 {[%clk 0:00:03.6]} 41... Qe3 {[%clk
0:00:08.5]} 42. Qxe3 {[%clk 0:00:02.9]} 42... Rxe3 {[%clk 0:00:08.2]} 43. Rf2
{[%clk 0:00:03.8]} 43... Re1+ {[%clk 0:00:08]} 44. Kh2 {[%clk 0:00:04.1]} 44...
Ne5 {[%clk 0:00:08.9]} 45. Kg3 {[%clk 0:00:04.3]} 45... Nd3 {[%clk 0:00:08.8]}
46. Rd2 {[%clk 0:00:04.7]} 46... Re3+ {[%clk 0:00:07.5]} 47. Kh2 {[%clk
0:00:03.8]} 47... Kg6 {[%clk 0:00:07.1]} 48. g4 {[%clk 0:00:04]} 48... Kg5
{[%clk 0:00:07.3]} 49. b3 {[%clk 0:00:04.2]} 49... Kf4 {[%clk 0:00:07.6]} 50. a4
{[%clk 0:00:04.5]} 50... bxa4 {[%clk 0:00:07.2]} 51. bxa4 {[%clk 0:00:05.4]}
51... Nc5 {[%clk 0:00:06.9]} 52. a5 {[%clk 0:00:05.3]} 52... Rxc3 {[%clk
0:00:06.3]} 53. a6 {[%clk 0:00:04.8]} 53... Nxa6 {[%clk 0:00:06.3]} 54. Rd6
{[%clk 0:00:05.2]} 54... Nc5 {[%clk 0:00:05.7]} 55. Rxf6+ {[%clk 0:00:05.5]}
55... Kg5 {[%clk 0:00:06.2]} 56. Rf7 {[%clk 0:00:05.8]} 56... Kg6 {[%clk
0:00:06.2]} 57. Rc7 {[%clk 0:00:05.5]} 57... Rc2+ {[%clk 0:00:05.7]} 58. Kg1
{[%clk 0:00:05.8]} 58... Rc1+ {[%clk 0:00:04.9]} 59. Kg2 {[%clk 0:00:05.5]}
59... h6 {[%clk 0:00:04]} 60. Rc6+ {[%clk 0:00:05.3]} 60... Kg5 {[%clk
0:00:04.5]} 61. h4+ {[%clk 0:00:05.1]} 61... Kxh4 {[%clk 0:00:03.8]} 62. Rxh6+
{[%clk 0:00:06]} 62... Kxg4 {[%clk 0:00:04.4]} 63. Rc6 {[%clk 0:00:06.3]} 63...
Kf4 {[%clk 0:00:04.4]} 64. Kf2 {[%clk 0:00:06.2]} 64... Rc2+ {[%clk 0:00:04.6]}
65. Kf1 {[%clk 0:00:06]} 65... Kf3 {[%clk 0:00:04.6]} 66. Rf6+ {[%clk
0:00:05.9]} 66... Ke3 {[%clk 0:00:05.1]} 67. Rc6 {[%clk 0:00:05.7]} 67... Rc1+
{[%clk 0:00:04.4]} 68. Kg2 {[%clk 0:00:06]} 68... Rc2+ {[%clk 0:00:04.7]} 69.
Kh3 {[%clk 0:00:06.2]} 69... Kf3 {[%clk 0:00:04.1]} 70. Rf6+ {[%clk 0:00:06]}
70... Ke4 {[%clk 0:00:04.4]} 71. Rc6 {[%clk 0:00:06.9]} 71... Kd5 {[%clk
0:00:04.8]} 72. Rc8 {[%clk 0:00:07]} 72... Rc3+ {[%clk 0:00:04.5]} 73. Kg4
{[%clk 0:00:06.8]} 73... Rc1 {[%clk 0:00:05.1]} 74. Rd8+ {[%clk 0:00:06.6]}
74... Ke5 {[%clk 0:00:04.4]} 75. Rc8 {[%clk 0:00:07.5]} 75... Kd5 {[%clk
0:00:03.3]} 76. Rd8+ {[%clk 0:00:07.3]} 76... Kc4 {[%clk 0:00:04]} 77. Rc8
{[%clk 0:00:08.2]} 77... Rd1 {[%clk 0:00:03.9]} 78. Kf5 {[%clk 0:00:08.3]} 78...
Rd6 {[%clk 0:00:03.8]} 79. Kg4 {[%clk 0:00:09.2]} 79... Kd5 {[%clk 0:00:04.1]}
80. Rf8 {[%clk 0:00:09.4]} 80... Ne4 {[%clk 0:00:04.3]} 81. Rf5+ {[%clk
0:00:09.5]} 81... Kd4 {[%clk 0:00:04.7]} 82. Rf8 {[%clk 0:00:10.4]} 82... Rg6+
{[%clk 0:00:04.7]} 83. Kf5 {[%clk 0:00:10.8]} 83... Rg1 {[%clk 0:00:04.8]} 84.
Rd8+ {[%clk 0:00:11]} 84... Ke3 {[%clk 0:00:04.4]} 85. Re8 {[%clk 0:00:11.5]}
85... Rf1+ {[%clk 0:00:04.7]} 86. Kg4 {[%clk 0:00:11.8]} 86... Rf4+ {[%clk
0:00:04.8]} 87. Kh3 {[%clk 0:00:11.5]} 87... Kf3 {[%clk 0:00:05]} 88. Rg8 {[%clk
0:00:11]} 88... Nf2+ {[%clk 0:00:04.6]} 89. Kh2 {[%clk 0:00:10.8]} 89... Rh4+
{[%clk 0:00:04.8]} 90. Kg1 {[%clk 0:00:11]} 90... Rh1# {[%clk 0:00:05.5]} 0-1